Cogmind - Beta 17.1 @@@ ROGUE MODE // 2026.08.30 @ 17:40:45 Player: ATOM Result: Destroyed by PL-8QX(g) with Beamcaster Performance ------------- Evolutions (3) 1500 Regions Visited (6) 1200 Robots Destroyed (130) 650 Value Destroyed (4291) 4291 Prototype IDs (10) 200 Alien Tech Used (0) 0 Bonus (287) 287 TOTAL SCORE: 8128 Bonus ------- High Alert Combat Kills 178 Follower Combat Kills 109 Cogmind --------- Core Integrity 0/700 Matter 300/300 Energy 100/100 System Corruption 3% Temperature Cool (9) Movement Core (400) Ox7 Location -7/Lower Caves Parts ------- > --- POWER (2) -------- (None) > --- PROPULSION (3) --- (None) > --- UTILITY (6) ------ Large Storage Unit Improved Signal Interpreter System Shield > --- WEAPON (2) ------- Mace > --- INVENTORY (15) --- Improved Sensor Array Advanced Targeting Computer Transmission Jammer Power Shielding Mace Peak State ------------ > --- POWER ------------ Improved Deuterium Engine Micro Nuclear Core > --- PROPULSION ------- Medium Treads Medium Treads Medium Treads > --- UTILITY ---------- Improved Heat Sink Large Storage Unit Experimental Sensor Array Improved Signal Interpreter Improved Utility Shielding System Shield > --- WEAPON ----------- Assault Cannon Improved Grenade Launcher > --- INVENTORY -------- Improved Ion Engine Light Treads Compact Wheel Improved Heat Sink Improved Sensor Array Advanced Targeting Computer Transmission Jammer Core Shielding Power Shielding Hardened Medium Armor Plating Reflective Plating Assault Rifle [Rating: 50] Favorites ----------- Power Heavy Ion Engine Engine Heavy Ion Engine Power Core Light Nuclear Core Propulsion Light Treads Treads Light Treads Leg Aluminum Leg Wheel Compact Wheel Flight Unit Flight Unit Utility Large Storage Unit Device Improved Heat Sink Storage Large Storage Unit Processor Improved Signal Interpreter Hackware Hacking Suite Protection Light Armor Plating Weapon Light Assault Rifle Energy Gun Particle Gun Ballistic Gun Light Assault Rifle Ballistic Cannon Light Cannon Launcher Improved Grenade Launcher Impact Weapon Mace Build | -11 -10 -10 -9 -8 -7 -7 ------- Run | Yrd Mat Min Mat Mat Fac Low Slots Evolved 6 | . . . 2 2 2 . Power 1 | . . . . 1 . . Propulsion 1 | . . . . 1 . . Utility 4 | . . . 2 . 2 . Weapon . | . . . . . . . Parts Attached 96 | 4 11 1 23 39 10 8 Power 18 | 1 2 . 2 9 2 2 Engine 11 | 1 2 . 1 6 1 . Core 7 | . . . 1 3 1 2 Reactor . | . . . . . . . Propulsion 26 | 2 2 . 4 15 2 1 Treads 19 | 2 1 . 4 10 2 . Leg 3 | . . . . 3 . . Wheel 3 | . 1 . . 1 . 1 Hover . | . . . . . . . Flight 1 | . . . . 1 . . Utility 30 | 1 3 . 11 8 3 4 Device 11 | . 1 . 4 3 1 2 Storage 4 | 1 1 . 1 1 . . Processor 1 | . . . . . 1 . Hackware 2 | . . . 1 . 1 . Protection 12 | . 1 . 5 4 . 2 Artifact . | . . . . . . . Weapon 22 | . 4 1 6 7 3 1 Energy Gun 7 | . 1 . 3 2 . 1 Energy Cannon . | . . . . . . . Ballistic Gun 7 | . 1 1 2 2 1 . Ballistic Cannon 6 | . 2 . 1 3 . . Launcher 1 | . . . . . 1 . Special Weapon . | . . . . . . . Impact Weapon 1 | . . . . . 1 . Slashing Weapon . | . . . . . . . Piercing Weapon . | . . . . . . . Special Melee Weapon . | . . . . . . . Unidentified Prototypes 4 | . . . 2 1 1 . Parts Lost 45 | . 3 . 5 14 7 16 Power 8 | . . . . 3 1 4 Propulsion 14 | . 1 . 1 6 2 4 Utility 13 | . 1 . 4 2 . 6 Weapon 10 | . 1 . . 3 4 2 Highest Loss Streak 8 | . 3 . 2 5 3 8 To Critical Strikes 1 | . . . . 1 . . Average Backups 10 | 2 6 8 11 12 11 7 Power 1 | . . . 2 . . . Propulsion 1 | . 2 2 1 1 1 . Utility 6 | . 1 5 6 8 7 6 Weapon 1 | 1 1 . 1 1 . 1 Tool/Special . | . . . . . . . Unused Backups 17 | . . . 2 10 . 5 Power 1 | . . . 1 . . . Propulsion 1 | . . . . 1 . . Utility 12 | . . . 1 7 . 4 Weapon 3 | . . . . 2 . 1 Tool/Special . | . . . . . . . Average Slot Usage (%) 96 | . 97 100 99 97 96 74 Engine 10 | . 14 14 8 13 7 . Core 3 | . . . 2 4 4 12 Treads 19 | . 23 14 20 22 22 1 Wheel 2 | . 4 14 1 . . 6 Device 8 | . 3 . 11 9 15 7 Storage 10 | . 14 14 11 9 7 7 Processor 1 | . . . . . 6 7 Hackware 5 | . . . 10 4 6 7 Protection 11 | . 8 14 10 13 7 13 Energy Gun 2 | . 4 . 6 2 . . Ballistic Gun 7 | . 10 14 10 7 1 . Ballistic Cannon 7 | . 11 14 4 8 3 . Launcher 1 | . . . . . 6 . Peak Build Rating 50 | 4 8 10 23 39 50 47 Average Rating 24 | 2 6 9 20 30 46 24 On Entrance 18 | . 4 7 10 22 38 47 Avg Prop Armor Cover (%) 8 | . 9 9 7 8 . . Naked Turns . | . . . . . . . Heaviest Build 51 | 8 30 30 42 46 51 48 Greatest Support 84 | 40 40 16 40 84 84 76 Greatest Overweight (x) 15 | . 1 1 2 15 . 10 Average Overweight (x) . | . . 1 . . . 2 Largest Inventory Capacity 15 | 8 15 15 15 15 15 15 Average Capacity 14 | 6 10 15 15 15 15 15 Most Carried 15 | 5 9 12 15 15 13 12 Average Carried 11 | 2 6 10 13 14 11 7 Final Capacity 15 | 8 15 15 15 15 15 15 Final Carried 15 | 4 6 12 15 14 12 5 Class Distribution -------------------- 62% | Mutant 36% | Scavenger-Mutant Dominant Class ---------------- Mutant | -10/Materials Mutant | -10/Mines Scavenger-Mutant | -9/Materials Scavenger-Mutant | -8/Materials Mutant | -7/Factory Mutant | -7/Lower Caves Resources | -11 -10 -10 -9 -8 -7 -7 ----------- Run | Yrd Mat Min Mat Mat Fac Low Matter Collected 3130 | 235 327 69 703 1237 159 400 Remotely . | . . . . . . . Salvage Created 3885 | . 379 40 1185 1764 269 248 Parts 262 | . 23 8 102 103 12 14 Haulers Intercepted . | . . . . . . . Recyclers Shooed 2 | . . . 1 1 . . Parts Field Recycled . | . . . . . . . Retrieved Matter . | . . . . . . . Parts Self-Destructed 10 | . . . . . . 10 Prevented 2 | . . . . . . 2 Parts Restored . | . . . . . . . Kills | -11 -10 -10 -9 -8 -7 -7 ------- Run | Yrd Mat Min Mat Mat Fac Low Combat Hostiles Destroyed 102 | . 11 3 32 40 8 8 Melee 5 | . . . . . 2 3 Guns 52 | . 5 3 24 20 . . Cannons 35 | . 6 . 8 19 2 . AOE 9 | . . . . 1 4 4 Classes Destroyed 12 | . 5 . 2 2 3 . Worker 4 | . 1 . 1 2 . . Builder 4 | . . . 4 . . . Recycler 1 | . . . . . 1 . Operator 7 | . 1 . 2 3 1 . Watcher 12 | . 1 . 5 5 1 . Swarmer 26 | . 3 3 10 3 3 4 Grunt 50 | . 8 . 15 25 . 2 Brawler 1 | . . . . . 1 . Duelist 2 | . . . . 1 . 1 Sentry 18 | . . . 7 10 1 . Hunter 2 | . . . . 1 1 . Programmer 2 | . . . . . 2 . Thug 1 | . . . . . . 1 Best Kill Streak 5 | . 4 2 5 5 3 5 Combat Bots Only 5 | . 3 2 4 5 3 5 Max Kills in Single Turn 3 | . 1 1 1 1 1 3 Gunslinging . | . . . . . . . Exploded 3 | . . . . 1 1 3 Melee 1 | . . . . . 1 1 Uniques/NPCs Destroyed . | . . . . . . . Combat | -11 -10 -10 -9 -8 -7 -7 -------- Run | Yrd Mat Min Mat Mat Fac Low Hostile Shots Fired 748 | . 84 10 174 286 77 117 Missed 208 | . 24 3 46 84 26 25 Hits 540 | . 60 7 128 202 51 92 Melee 9 | . . . . 1 1 7 Projectile 531 | . 60 7 128 201 50 85 Critical Strikes 30 | . 1 . 7 13 1 8 Actively Blocked 2 | . . . . 1 . 1 Part Disruptions 1 | . . . . . . 1 Damage Taken 8060 | . 740 94 1391 3027 1003 1805 Core 1594 | . 144 27 207 507 160 549 Absorbed by Shields 65 | . . . 65 . . . Redirected to Shielding 244 | . . . . 136 18 90 Ignored by Resistances 42 | . . . . . . 42 Regen/Repaired (Parts) 118 | . . . 118 . . . Core Remaining (%) 46 | 100 . 31 48 7 . . Volleys Fired 343 | . 60 7 108 133 28 7 Largest 2 | . 2 2 2 2 2 1 Hottest 88 | . 70 50 88 88 87 75 Shots Fired 650 | . 119 14 214 255 40 8 Gun 404 | . 75 7 154 151 12 5 Cannon 235 | . 44 7 60 104 20 . Launcher 11 | . . . . . 8 3 Special . | . . . . . . . Kinetic 515 | . 89 14 168 213 31 . Thermal 100 | . 30 . 36 29 . 5 Explosive 11 | . . . . . 8 3 Electromagnetic 24 | . . . 10 13 1 . Robot Hit Streak 19 | . 12 6 10 19 8 5 Robot Miss Streak 8 | . 8 1 5 5 2 2 Penetration Max 1 | . . . . 1 . . Secondary Targets 7 | . 1 . . 6 . . Max Gunslinging Chain 1 | . 1 . . 1 . . Shots Hit Robots 411 | . 64 10 119 177 24 17 Core Hits 212 | . 26 4 66 91 20 5 Critical Kills . | . . . . . . . Critical Parts Destroyed 4 | . 1 . . 1 . 2 Critical Strikes 11 | . 3 . 1 4 1 2 Burn 1 | . . . 1 . . . Destroy 2 | . 1 . . 1 . . Blast 6 | . 2 . . 3 1 . Smash 2 | . . . . . . 2 Melee Attacks 16 | . . . . . . 16 Impact 16 | . . . . . . 16 Slashing . | . . . . . . . Piercing . | . . . . . . . Sneak Attacks . | . . . . . . . Combat Hostiles . | . . . . . . . Follow-up Attacks . | . . . . . . . Damage Inflicted 8257 | . 795 117 1914 3669 963 799 Guns 3923 | . 449 49 1137 2105 96 87 Cannons 2790 | . 346 68 777 1405 194 . Explosions 1083 | . . . . 159 627 297 Melee 415 | . . . . . . 415 Ramming 46 | . . . . . 46 . Kinetic 5340 | . 577 117 1471 2919 256 . Thermal 1128 | . 218 . 333 490 . 87 Explosive 959 | . . . . 35 627 297 Electromagnetic 369 | . . . 110 225 34 . Impact 415 | . . . . . . 415 Slashing . | . . . . . . . Piercing . | . . . . . . . Highest Corruption 3 | . . . . 2 3 3 Average Corruption 2 | . . . . 2 2 3 Corruption Purged . | . . . . . . . Corruption Blocked . | . . . . . . . Effects 26 | . . . . 6 11 9 Message Errors 7 | . . . . 3 3 1 Matter Fused 11 | . . . . 1 6 4 Heat Flow Errors 2 | . . . . 1 1 . Energy Discharges 2 | . . . . . 1 1 Data Loss (minor) 2 | . . . . . . 2 Data Loss (major) 1 | . . . . 1 . . Misfires 1 | . . . . . . 1 Overload Shots . | . . . . . . . Overflow Damage 223 | . . . . 7 57 159 Projectiles 7 | . . . . 7 . . Explosions 102 | . . . . . 57 45 Melee 114 | . . . . . . 114 Knockbacks 28 | . 3 4 6 13 . 2 Impact 2 | . . . . . . 2 Kinetic 25 | . 3 3 6 13 . . Secondary 1 | . . 1 . . . . Self-Inflicted Damage 481 | . . . . 199 259 23 Shots 9 | . . . . 3 5 1 Rammed 9 | . . . . . 9 . Targets Rammed 11 | . . . . . 11 . Kicked . | . . . . . . . Crushed 2 | . . . . . 2 . Highest Temperature 224 | . 90 33 186 224 165 62 Average Temperature 29 | . 19 13 40 32 84 32 Received Heat Transfer 3173 | . 414 33 499 1422 12 793 Siege Activations . | . . . . . . . Martial Activations . | . . . . . . . Shielding Activations . | . . . . . . . Robots Disrupted . | . . . . . . . Combat Hostiles . | . . . . . . . Robots Corrupted 1 | . . . . . . 1 Combat Hostiles 1 | . . . . . . 1 Parts Fried 2 | . . . . 1 1 . Impact Corruptions 4 | . . . . . . 4 Robots Melted . | . . . . . . . Combat Hostiles . | . . . . . . . Parts Melted 1 | . . . . 1 . . Heat Transferred 2500 | . 500 . 851 1001 . 148 Parts Sabotaged . | . . . . . . . Parts Stolen . | . . . . . . . Parts Stripped . | . . . . . . . Power Chain Reactions 3 | . . . . 3 . . Alert | -11 -10 -10 -9 -8 -7 -7 ------- Run | Yrd Mat Min Mat Mat Fac Low Maximum Alert Level 2 | . . . 2 2 . . Low Security (%) 71 | 100 100 100 60 31 100 . Level 1 18 | . . . 29 38 . . Level 2 10 | . . . 9 30 . . Level 3 . | . . . . . . . Level 4 . | . . . . . . . Level 5 . | . . . . . . . High Security . | . . . . . . . Max Security . | . . . . . . . Peak Influence 505 | . 90 56 480 505 148 . Initial 196 | . . 9 . 196 137 . Average 134 | . 21 11 155 291 49 . Influence Increases 3499 | . 353 183 1110 1299 394 160 Destroy 0b10 Robot/C 2200 | . 220 140 740 800 160 140 Destroy 0b10 Robot/NC 140 | . 15 . 60 50 15 . Destroy Leader 534 | . 52 30 190 200 42 20 Allied During Kill 27 | . . 13 14 . . . Successful Hack 46 | . 20 . 12 14 . . Disable Machine 225 | . 15 . 30 90 90 . Destroy Structure 132 | . 1 . 4 40 87 . Partial Spotted 15 | . . . . 15 . . Lose Combat Pursuer 180 | . 30 . 60 90 . . Influence Decreases 3499 | . 327 209 644 1463 696 160 Entered New Map 452 | . . 17 . 270 165 . Time Decay 2091 | . 297 177 433 643 461 80 Lost Part 369 | . 30 . 49 140 70 80 Lost Ally 35 | . . 15 20 . . . Purge Threat 552 | . . . 142 410 . . Squads Dispatched 20 | . 1 . 7 8 4 . Investigation 4 | . . . 2 1 1 . Extermination 2 | . . . . . 2 . Reinforcement 9 | . 1 . 3 4 1 . Assault 2 | . . . 2 . . . Garrison 3 | . . . . 3 . . Intercept . | . . . . . . . Searches Triggered . | . . . . . . . Construction Impeded 1 | . . . . 1 . . Haulers Reinforced . | . . . . . . . Active Scanning Responses . | . . . . . . . Cargo Convoy Interrupts . | . . . . . . . Stealth | -11 -10 -10 -9 -8 -7 -7 --------- Run | Yrd Mat Min Mat Mat Fac Low Distress Signals 9 | . 1 . 5 3 . . Communications Jammed . | . . . . . . . Distress Signals . | . . . . . . . Times Spotted 172 | . 28 11 57 55 13 8 Peak Tracking Total 6 | . 4 3 5 6 4 4 Tactical Retreats 10 | . 2 . 3 5 . . Traps | -11 -10 -10 -9 -8 -7 -7 ------- Run | Yrd Mat Min Mat Mat Fac Low Traps Triggered 8 | . 1 . 1 5 1 . Indirectly . | . . . . . . . Trap Hack Attempts . | . . . . . . . Triggered . | . . . . . . . Disarmed . | . . . . . . . Reprogrammed . | . . . . . . . Reused . | . . . . . . . Traps Extracted . | . . . . . . . Installed . | . . . . . . . Triggered . | . . . . . . . Machines | -11 -10 -10 -9 -8 -7 -7 ---------- Run | Yrd Mat Min Mat Mat Fac Low Machines Disabled 16 | . 1 . 3 6 6 . Max in Single Turn 4 | . 1 . 1 1 4 . Garrison Access 1 | . . . . 1 . . Machines Repaired . | . . . . . . . Machines Dismantled . | . . . . . . . Machines Sabotaged . | . . . . . . . Overloaded Fab Kills . | . . . . . . . Hacking | -11 -10 -10 -9 -8 -7 -7 --------- Run | Yrd Mat Min Mat Mat Fac Low Machines Accessed 26 | . 6 . 8 11 1 . Terminals 16 | . 5 . 4 7 . . Fabricators . | . . . . . . . Repair Stations 3 | . . . 2 1 . . Recycling Units 3 | . 1 . 1 1 . . Scanalyzers 3 | . . . 1 1 1 . Garrison Access 1 | . . . . 1 . . Total Hacks 73 | . 9 . 24 36 4 . Successful 43 | . 5 . 16 18 4 . Failed 30 | . 4 . 8 18 . . Catastrophic 4 | . . . 1 3 . . Database Lockouts . | . . . . . . . Manual . | . . . . . . . Terminals 41 | . 7 . 10 24 . . Fabricators . | . . . . . . . Repair Stations 10 | . . . 8 2 . . Recycling Units 4 | . 2 . 1 1 . . Scanalyzers 17 | . . . 5 8 4 . Garrison Access 1 | . . . . 1 . . Terminal Hacks 15 | . 4 . 4 7 . . Prototype ID Bank 3 | . 1 . . 2 . . Branch Access Points 2 | . 1 . . 1 . . Unreport Threat 5 | . . . 2 3 . . Locate Traps 1 | . 1 . . . . . Recall Investigation 1 | . . . 1 . . . Recall Reinforcements 1 | . . . 1 . . . Registered Components 2 | . 1 . . 1 . . Fabricator Hacks . | . . . . . . . Repair Station Hacks 7 | . . . 6 1 . . Scan Component 4 | . . . 3 1 . . Repair 3 | . . . 3 . . . Recycling Unit Hacks 3 | . 1 . 1 1 . . Report Inventory 3 | . 1 . 1 1 . . Scanalyzer 17 | . . . 5 8 4 . Insert Component 3 | . . . . 2 1 . Analyze 3 | . . . . 2 1 . Retrieve Study 11 | . . . 5 4 2 . Garrison Access Hacks 1 | . . . . 1 . . Seal Access 1 | . . . . 1 . . Unauthorized Hacks . | . . . . . . . Terminals . | . . . . . . . Fabricators . | . . . . . . . Repair Stations . | . . . . . . . Recycling Units . | . . . . . . . Scanalyzers . | . . . . . . . Garrison Access . | . . . . . . . Data Cores Recovered 1 | . . . 1 . . . Used . | . . . . . . . Hacking Detections 18 | . 3 . 6 8 1 . Full Trace Events 4 | . . . 1 2 1 . Feedback Events . | . . . . . . . Feedback Blocked . | . . . . . . . Robot Schematics Acquired . | . . . . . . . Robots Built . | . . . . . . . Authchips . | . . . . . . . Time . | . . . . . . . Total Robot Build Rating . | . . . . . . . Part Schematics Acquired 3 | . . . . 2 1 . Parts Built . | . . . . . . . Authchips . | . . . . . . . Time . | . . . . . . . Total Part Build Rating . | . . . . . . . Part Studies Acquired 11 | . . . 5 4 2 . Parts Repaired 3 | . . . 3 . . . Time 127 | . . . 127 . . . Parts Recycled . | . . . . . . . Recycled Matter . | . . . . . . . Retrieved Matter . | . . . . . . . Retrieved Components . | . . . . . . . Parts Scanalyzed 3 | . . . . 2 1 . Part Schematics Acquired 3 | . . . . 2 1 . Parts Damaged . | . . . . . . . Bothacking | -11 -10 -10 -9 -8 -7 -7 ------------ Run | Yrd Mat Min Mat Mat Fac Low Used RIF Installer . | . . . . . . . Robots Hacked . | . . . . . . . Non-combat . | . . . . . . . Combat . | . . . . . . . Robot Hacks Applied . | . . . . . . . Relay Couplers Released . | . . . . . . . Fabnet Peak Effective % . | . . . . . . . Robots Rewired . | . . . . . . . Allies Hacked . | . . . . . . . Hacks Repelled . | . . . . . . . Allies | -11 -10 -10 -9 -8 -7 -7 -------- Run | Yrd Mat Min Mat Mat Fac Low Total Allies 3 | . . 3 . . . . Largest Group 3 | . . 3 2 . . . Highest-Rated Group 40 | . . 40 32 . . . Highest-Rated Ally 16 | . . 16 16 . . . Total Orders . | . . . . . . . Ally Attacks 43 | . . 12 31 . . . Total Damage 388 | . . 136 252 . . . Kills 9 | . . 4 5 . . . Allies Corrupted . | . . . . . . . Allies Melted . | . . . . . . . Intel | -11 -10 -10 -9 -8 -7 -7 ------- Run | Yrd Mat Min Mat Mat Fac Low Active Infowar (turns) 1636 | . . . . . 1592 44 Sensors 1636 | . . . . . 1592 44 Robot Analysis Total . | . . . . . . . Derelict Logs Recovered 3 | . . 2 . . . 1 Drone Launches . | . . . . . . . Drone Recoveries . | . . . . . . . Exploration | -11 -10 -10 -9 -8 -7 -7 ------------- Run | Yrd Mat Min Mat Mat Fac Low Turns Passed 9202 | 95 1421 976 2122 2417 1592 579 Spaces Moved 4526 | 54 834 750 957 1053 480 398 Core 13 | 4 . . . 4 . 5 Treads 2829 | 50 487 . 816 984 480 12 Legs 64 | . . . . 64 . . Wheels 1620 | . 347 750 141 1 . 381 Hover . | . . . . . . . Flight . | . . . . . . . Fastest Speed 50 | 50 115 115 105 140 160 105 Average Speed 151 | 151 141 115 167 176 160 125 Slowest Speed 800 | 160 240 115 200 800 160 550 Overloaded Moves . | . . . . . . . Propulsion Burnouts . | . . . . . . . Robots Hopped . | . . . . . . . Potential Cave-ins . | . . . . . . . Cave-ins Triggered . | . . . . . . . Exploration Rate (%) 56 | 3 96 97 67 75 9 49 Regions Visited 6 Branch Regions 2 Pre-discovered Areas . | . . . . . . . Known Exits Taken 2 | . 1 . . . 1 . Unknown Exits Taken 4 | 1 . 1 1 1 . . Scrap Searched 1 | . . 1 . . . . Spaces Dug . | . . . . . . . Terrain Destroyed 169 | . . . . 34 97 38 Melee . | . . . . . . . Projectile 6 | . . . . 6 . . AOE 163 | . . . . 28 97 38 Terrain Rammed 1 | . . . . . 1 . Walls Destroyed . | . . . . . . . Machines Disabled . | . . . . . . . Actions | -11 -10 -10 -9 -8 -7 -7 --------- Run | Yrd Mat Min Mat Mat Fac Low Total 6224 | 67 964 851 1278 1363 1256 445 Wait 1042 | 2 41 84 138 57 714 6 Move 4520 | 53 833 749 956 1052 479 398 Hop . | . . . . . . . Pick Up 107 | 8 14 7 28 36 9 5 Fast Attach 15 | . . . 4 11 . . Attach 58 | 4 9 . 7 17 9 12 Detach . | . . . . . . . Swap 47 | . 4 2 15 23 3 . Drop 64 | . 3 2 22 34 2 1 Fire 343 | . 60 7 108 133 28 7 Melee 16 | . . . . . . 16 Ram 1 | . . . . . 1 . Kick . | . . . . . . . Crush 11 | . . . . . 11 . Escape Stasis . | . . . . . . . Rewire . | . . . . . . . Trap . | . . . . . . . Miscellaneous . | . . . . . . . Route ------- -11/Scrapyard -10/Materials (discovered 5 exits: *Mat x3 / *Min x2) -10/Mines (discovered 3 exits: *Mat x2 / [*Exi]) -9/Materials (discovered 4 exits: *Mat x2 / [*Min] / [*Sto]) -8/Materials (discovered 2 exits: *Fac x2) -7/Factory -7/Lower Caves History --------- Turn | Location | Event 14 | -11/Scrapyard | Discovered new exit (range 14) 96 | -11/Scrapyard | Entered Materials 97 | -10/Materials | Met a group of wandering Federalists 239 | -10/Materials | Identified exit to Mines 313 | -10/Materials | Build established: Mutant 467 | -10/Materials | Discovered new exit (range 15) 599 | -10/Materials | Core integrity fell below 50% 635 | -10/Materials | Lost 3 parts (1n1u1w) 1202 | -10/Materials | Discovered new exit (range 16) 1276 | -10/Materials | Discovered new exit (range 15) 1517 | -10/Materials | Entered Mines 1518 | -10/Mines | Met a Derelict testing a Signal Generator 1523 | -10/Mines | Found Signal Generator 1578 | -10/Mines | Found a Scrap Suit stashed away for nefarious purposes 1581 | -10/Mines | Found Scrap Suit 1597 | -10/Mines | Learned Materials terminal intel 1705 | -10/Mines | Found a damaged Exp. Sensor Array with a note attached 1707 | -10/Mines | Found Prototype Device 1857 | -10/Mines | Discovered new exit (range 14) 1917 | -10/Mines | Assisted by bots powering up and referring to "LRC-V3" 2010 | -10/Mines | Discovered new exit (range 9) 2279 | -10/Mines | Deemed a non-threat by the Exiles lab entrance 2279 | -10/Mines | Discovered new exit (range 5) 2493 | -10/Mines | Entered Materials 2493 | -9/Materials | Accompanied by 2 allies 2493 | -9/Materials | Evolved 2 slots: Utility x2 2494 | -9/Materials | Loaded intel: 12 terminal locations 2649 | -9/Materials | Discovered new exit (range 15) 2981 | -9/Materials | Build established: Scavenger-Mutant 3776 | -9/Materials | Discovered new exit (range 16) 3944 | -9/Materials | Repaired Lgt. Nuclear Core 4089 | -9/Materials | Discovered new exit (range 10) 4231 | -9/Materials | Repaired Imp. Assault Rifle 4343 | -9/Materials | Discovered new exit (range 15) 4475 | -9/Materials | Core integrity fell below 50% 4493 | -9/Materials | First assault squad dispatched 4502 | -9/Materials | Repaired Imp. Heat Sink 4615 | -9/Materials | Entered another Materials area 4615 | -8/Materials | Evolved 2 slots: Power x1, Propulsion x1 4867 | -8/Materials | Lost 5 parts (1p2n2w) 5138 | -8/Materials | Core integrity fell below 50% 5194 | -8/Materials | Garrison activated, responded to threat 5534 | -8/Materials | Core integrity fell below 20% 5900 | -8/Materials | Discovered new exit (range 10) 6482 | -8/Materials | Discovered new exit (range 9) 6801 | -8/Materials | Build established: Mutant 7032 | -8/Materials | Entered Factory 7032 | -7/Factory | Evolved 2 slots: Utility x2 7032 | -7/Factory | Identified Exp. Sensor Array 7217 | -7/Factory | Lost 3 parts (1p2w) 8607 | -7/Factory | Discovered new exit (range 6) 8615 | -7/Factory | Identified exit to Lower Caves 8624 | -7/Factory | Entered Lower Caves 8720 | -7/Lower Caves | Lost 8 parts (2p3n2u1w) 8746 | -7/Lower Caves | Learned location of 1 exit from Factory 8880 | -7/Lower Caves | Encountered a Warlord checkpoint 9143 | -7/Lower Caves | Attacked by a faux Warlord 9171 | -7/Lower Caves | Core integrity fell below 50% 9197 | -7/Lower Caves | Core integrity fell below 20% 9203 | -7/Lower Caves | Destroyed by PL-8QX(g) with Beamcaster Last Messages --------------- 09154_ 4X-DJ7(g) destroyed. 09156_ Acquired 50 matter. 09159_ Acquired Beamcaster. 09161_ 6J-7GO(g) misfires. 09163_ Com. Wheel+ destroyed. 09163_ Hrd. Medium Armor Plating blasted off. 09166_ Nuclear Core destroyed. 09175_ Imp. Heat Sink destroyed. 09179_ Critical hit (Burn: +37). 09181_ Nuclear Core destroyed. 09182_ Core Shielding destroyed. 09187_ Acquired 15 matter. 09188_ Imp. Heat Sink destroyed. 09188_ Critical hit (Burn: +80). 09190_ System corrupted: FCS attempts to trigger Beamcaster. 09190_ System corrupted: Beamcaster misfires. 09190_ Beamcaster destroyed. 09190_ Reflective Plating destroyed. 09192_ Knocked back. Map ----- +----------------------------------------------------+ | ????????????????###### ##????????????# ## #? | | ????????????????# ##???#??????#### #? | | ################# ####????# ???## # ## | | ###???????# ### | | ############### ##?????????# | | ?????????????## ##????????## | | ????????????## #?????????##### ## | | ???????????## #?????????????## ### | | ???????# ### #??????????????### ###?? | | ??????# ## ####?????????????# ##???? | | ??????# ### #????????????## ##????? | | ??????## ##?## ## #??????????### #?????? | | ???????## ##???#### #?????????## ####??? | | ????????## #???????## ##????# ## #### | | ?????????## ??????### #### # | | ??????????####??????# ## ### | | ????????????????????# ##### ##??## | | ????????????????????## =% ##??# #????# | | ?????????????????????## =% #### ###??# | | ??????????????????????####! ##?# | | ????????????????????######! #?# | | ????????????????????# % g ##?# | | ?????????????? ##%=%M #??# | | ??????????????# ??????#%# = ##??## # | | ??????????????????????## ## ##????## ## | | ??????????????????????# @ ## ##??????# #? | | ??????????????????????##g # #???????# #? | | ??????????????????????#g # ## #???????# | | ??????????????????????## ###g#?#? ?????? | | ???????????????????????##???##???? ??? ? | | ??????????????????????????????????######???? ? | | ??????????????????????????????????????????? ### ? | | ?????????????????????????????????????????? ????? | | ?????????????????????????????????????????????????? | | ?????????????????????????????????????????????????? | | ?????????????????????????????????????????????????? | | ?????????????????????????????????????????????????? | | ?????????????????????????????????????????????????? | | ?????????????????????????????????????????????????? | | ?????????????????????????????????????????????????? | | ?????????????????????????????????????????????????? | | ?????????????????????????????????????????????????? | | ?????????????????????????????????????????????????? | | ?????????????????????????????????????????????????? | | ?????????????????????????????????????????????????? | | ?????????????????????????????????????????????????? | | ?????????????????????????????????????????????????? | | ?????????????????????????????????????????????????? | | ?????????????????????????????????????????????????? | | ?????????????????????????????????????????????????? | +----------------------------------------------------+ Best States ------------- Heat Dissipation 62 Energy Generation 28 Energy Capacity 460 Matter Stores 300 Matter Capacity 300 Sight Range 16 Robot Scan Range 20 Terrain Scan Density 10 Armor Coverage 300 Resistance: TH 10 Core Shielding 20 Propulsion Shielding 66 Utility Shielding 66 Evasion (%) 40 Recoil Reduction 3 Offensive Hacking 10 Defensive Hacking 10 Item Schematics ----------------- Gauss Rifle | -8/Materials | Scanalyzed Core Shielding | -8/Materials | Scanalyzed Transmission Jammer | -7/Factory | Scanalyzed Robot Schematics ------------------ None Fabricated ------------ Nothing Repaired ---------- Lgt. Nuclear Core | 32% | -9/Materials Imp. Assault Rifle | 49% | -9/Materials Imp. Heat Sink | 67% | -9/Materials Studied --------- Lgt. Treads | -9/Materials | Hacked Lgt. Ion Engine | -9/Materials | Hacked Com. Wheel | -9/Materials | Hacked Lgt. Cannon | -9/Materials | Hacked Lgt. Assault Rifle | -9/Materials | Hacked Imp. Ion Engine | -8/Materials | Hacked Lgt. Nuclear Core | -8/Materials | Hacked Imp. Light Cannon | -8/Materials | Hacked Hpw. Shotgun | -8/Materials | Hacked Imp. Deuterium Engine | -7/Factory | Hacked Imp. Grenade Launcher | -7/Factory | Hacked Alien Tech Used ----------------- None Achievements -------------- None Challenges ------------ None Game ------ Seed SmartBurstProcessor Manual? 0 Play Time 01:22:29 Cumulative 40.4 hours Start 2026.08.30 @ 16:12:39 End 2026.08.30 @ 17:40:45 Sessions 1 Manual Loads 0 Difficulty Rogue Special Mode None Game No. 59 Rogue 59 Adventurer 0 Explorer 0 Win Type - Total 0 Types 0/0/0/0/0/0/0/0/0/0 Lore% 19 Gallery% 23 Achievement% 20 Wizard Run 0 Options --------- Layout 1 ASCII 0 Keyboard 0 Movement Mouse Keybinds 0 Fullscreen 1 Font 16/SmallcapsGlow Map View 50x40 Zoom Use 0% Tactical HUD 1 Map Filters NONE Filters NONE Steam SD RUN: 0501ddfe-f583-45c7-a479-8a1df70fbdf1